Cogmind - Beta 10.2 @@@ ROGUE MODE // 2021.02.23 @ 13:46:32 Player: PYNTER Result: Destroyed by G-47 Trooper with Particle Gun Performance ------------- Evolutions (2) 1000 Regions Visited (4) 800 Robots Destroyed (21) 105 Value Destroyed (308) 308 Prototype IDs (6) 120 Alien Tech Used (0) 0 Bonus (0) 0 TOTAL SCORE: 2333 Bonus ------- None Cogmind --------- Core Integrity 0/550 Matter 300/300 Energy 100/100 System Corruption 0% Temperature Cool (9) Movement Core (50) Location -8/Materials Parts ------- > --- POWER (2) -------- (None) > --- PROPULSION (4) --- (None) > --- UTILITY (3) ------ Visual Processing Unit > --- WEAPON (2) ------- (None) > --- INVENTORY (4) ---- (None) Peak State ------------ > --- POWER ------------ Light Nuclear Core > --- PROPULSION ------- Flight Unit Flight Unit Flight Unit Flight Unit > --- UTILITY ---------- Visual Processing Unit Improved Sensor Array > --- WEAPON ----------- Light Assault Rifle Plasma Flamer > --- INVENTORY -------- Improved Ion Engine Compact Matter Pod Improved Sensor Array ECM Suite [Rating: 17] Favorites ----------- Power Ion Engine Engine Ion Engine Power Core Light Nuclear Core Propulsion Flight Unit Treads Light Treads Leg Aluminum Leg Hover Unit Hover Unit Flight Unit Flight Unit Utility Visual Processing Unit Device Terrain Scanner Storage Small Storage Unit Processor Visual Processing Unit Protection Propulsion Shielding Weapon Small Laser Energy Gun Small Laser Ballistic Gun Light Assault Rifle Special Weapon Plasma Flamer Impact Weapon Great Maul Build | -11 -10 -10 -9 -8 ------- Run | Scr Mat Min Mat Mat Slots Evolved 4 | . . . 2 2 Power 1 | . . . . 1 Propulsion 2 | . . . 2 . Utility 1 | . . . . 1 Weapon . | . . . . . Parts Attached 39 | 6 9 6 7 11 Power 7 | 1 . 1 3 2 Engine 4 | 1 . 1 2 . Core 3 | . . . 1 2 Reactor . | . . . . . Propulsion 10 | 2 3 2 2 1 Treads 2 | 2 . . . . Leg 1 | . . . . 1 Wheel . | . . . . . Hover 3 | . 3 . . . Flight 4 | . . 2 2 . Utility 9 | 1 3 . 2 3 Device 5 | . 1 . 1 3 Storage 1 | 1 . . . . Processor 2 | . 1 . 1 . Hackware . | . . . . . Protection 1 | . 1 . . . Artifact . | . . . . . Weapon 13 | 2 3 3 . 5 Energy Gun 4 | 2 2 . . . Energy Cannon . | . . . . . Ballistic Gun 3 | . 1 2 . . Ballistic Cannon . | . . . . . Launcher . | . . . . . Special Weapon 3 | . . 1 . 2 Impact Weapon 3 | . . . . 3 Slashing Weapon . | . . . . . Piercing Weapon . | . . . . . Special Melee Weapon . | . . . . . Unidentified Prototypes 1 | . . . 1 . Parts Lost 15 | . . 1 7 7 Power 1 | . . . . 1 Propulsion 5 | . . . 4 1 Utility 3 | . . . 1 2 Weapon 6 | . . 1 2 3 Highest Loss Streak 7 | . . 1 7 4 Average Slot Usage (%) 73 | . 99 99 82 34 Engine 7 | . 14 14 6 . Core 3 | . . . 3 7 Treads 3 | . 15 . . . Hover 5 | . 12 9 . . Flight 10 | . . 18 38 . Device 12 | . 8 14 9 16 Storage 1 | . 5 . . . Processor 9 | . 8 14 6 9 Protection 1 | . 4 . . . Energy Gun 8 | . 23 12 . . Ballistic Gun 4 | . 4 9 9 . Special Weapon 2 | . . 5 8 . Naked Turns . | . . . . . Heaviest Build 16 | 12 13 8 12 16 Greatest Support 40 | 40 40 12 16 10 Greatest Overweight (x) 5 | . . . 1 5 Average Overweight (x) . | . . . . 1 Largest Inventory Capacity 6 | 6 6 4 4 4 Average Capacity 4 | 5 4 4 4 4 Most Carried 6 | 4 6 4 4 4 Average Carried 3 | 2 3 3 3 3 Final Capacity 6 | 6 4 4 4 4 Final Carried 4 | 4 4 4 4 . Class Distribution -------------------- 52% | Mutant 39% | Scavenger-Mutant 7% | Scavenger-Sprinter Dominant Class ---------------- Mutant | -10/Materials Scavenger-Mutant | -10/Mines Scavenger-Sprinter | -9/Materials Mutant | -8/Materials Resources | -11 -10 -10 -9 -8 ----------- Run | Scr Mat Min Mat Mat Matter Collected 534 | 259 92 65 . 118 Remotely . | . . . . . Salvage Created 578 | . 342 113 . 123 Parts 42 | . 31 8 . 3 Haulers Intercepted . | . . . . . Recyclers Shooed 3 | . 2 . 1 . Parts Field Recycled . | . . . . . Retrieved Matter . | . . . . . Parts Self-Destructed . | . . . . . Prevented . | . . . . . Kills | -11 -10 -10 -9 -8 ------- Run | Scr Mat Min Mat Mat Combat Hostiles Destroyed 13 | . 6 5 . 2 Melee 1 | . . . . 1 Guns 10 | . 5 5 . . AOE 1 | . 1 . . . Classes Destroyed 6 | . 5 1 . . Worker 2 | . 1 . . 1 Builder 2 | . 2 . . . Recycler 2 | . 2 . . . Watcher 2 | . 2 . . . Swarmer 9 | . 6 3 . . Grunt 4 | . . 2 . 2 Best Kill Streak 10 | . 10 4 . 3 Combat Bots Only 4 | . 3 4 . 2 Max Kills in Single Turn 1 | . 1 1 . 1 Gunslinging . | . . . . . Exploded 1 | . 1 . . . Melee 1 | . . . . 1 Uniques/NPCs Destroyed . | . . . . . Combat | -11 -10 -10 -9 -8 -------- Run | Scr Mat Min Mat Mat Damage Taken 1746 | . 237 176 365 968 Core 880 | . 88 86 149 557 Absorbed by Shields 21 | . . . . 21 Core Remaining (%) 64 | 100 . 30 62 . Volleys Fired 39 | . 21 12 5 1 Largest 2 | . 2 2 2 1 Hottest 120 | . 80 120 120 20 Shots Fired 66 | . 40 19 6 1 Gun 61 | . 40 16 5 . Cannon . | . . . . . Launcher . | . . . . . Special 5 | . . 3 1 1 Kinetic 11 | . 1 5 5 . Thermal 38 | . 22 14 1 1 Explosive . | . . . . . Electromagnetic 17 | . 17 . . . Robot Hit Streak 9 | . 9 7 5 . Robot Miss Streak 6 | . 2 1 5 6 Penetration Max . | . . . . . Secondary Targets 2 | . . 2 . . Max Gunslinging Chain 1 | . . 1 . . Shots Hit Robots 51 | . 28 14 1 8 Core Hits 24 | . 15 7 1 1 Critical Hits 1 | . . . . 1 Critical Kills . | . . . . . Critical Parts Destroyed 1 | . . . . 1 Melee Attacks 11 | . . . . 11 Impact 11 | . . . . 11 Slashing . | . . . . . Piercing . | . . . . . Sneak Attacks 1 | . . . . 1 Combat Hostiles . | . . . . . Follow-up Attacks . | . . . . . Damage Inflicted 890 | . 417 137 41 295 Guns 474 | . 336 113 25 . Cannons . | . . . . . Explosions 81 | . 81 . . . Melee 274 | . . . . 274 Ramming 25 | . . . 16 9 Kinetic 71 | . 9 37 25 . Thermal 311 | . 199 100 . 12 Explosive . | . . . . . Electromagnetic 209 | . 209 . . . Impact 274 | . . . . 274 Slashing . | . . . . . Piercing . | . . . . . Highest Corruption 1 | . . . 1 . Average Corruption 1 | . . . 1 . Corruption Purged . | . . . . . Overload Shots . | . . . . . Overflow Damage 57 | . . . . 57 Projectiles . | . . . . . Explosions . | . . . . . Melee 57 | . . . . 57 Knockbacks . | . . . . . Impact . | . . . . . Kinetic . | . . . . . Secondary . | . . . . . Self-Inflicted Damage 47 | . 36 . 8 3 Shots 1 | . 1 . . . Rammed 9 | . . . 2 7 Targets Rammed 9 | . . . 2 7 Kicked . | . . . . . Crushed . | . . . . . Highest Temperature 190 | . 190 150 68 3 Average Temperature 63 | . 70 69 24 3 Received Heat Transfer 672 | . . 72 75 525 Siege Activations . | . . . . . Robots Corrupted . | . . . . . Combat Hostiles . | . . . . . Parts Fried . | . . . . . Impact Corruptions 3 | . . . . 3 Robots Melted . | . . . . . Combat Hostiles . | . . . . . Parts Melted . | . . . . . Heat Transferred 797 | . 425 335 . 37 Parts Sabotaged . | . . . . . Parts Stolen . | . . . . . Parts Stripped . | . . . . . Power Chain Reactions 2 | . 2 . . . Missiles Intercepted . | . . . . . Alert | -11 -10 -10 -9 -8 ------- Run | Scr Mat Min Mat Mat Peak Influence 300 | . 208 160 300 133 Initial 126 | . . . 62 126 Average 95 | . 97 76 145 98 Maximum Alert Level 1 | . 1 . 1 . Low Security (%) 95 | 100 95 100 76 100 Level 1 4 | . 4 . 23 . Level 2 . | . . . . . Level 3 . | . . . . . Level 4 . | . . . . . Level 5 . | . . . . . High Security . | . . . . . Max Security . | . . . . . Squads Dispatched 6 | . . . 4 2 Investigation 2 | . . . 1 1 Extermination . | . . . . . Reinforcement 4 | . . . 3 1 Assault . | . . . . . Garrison . | . . . . . Intercept . | . . . . . Construction Impeded . | . . . . . Haulers Reinforced . | . . . . . Stealth | -11 -10 -10 -9 -8 --------- Run | Scr Mat Min Mat Mat Distress Signals 3 | . 1 . 2 . Communications Jammed . | . . . . . Distress Signals . | . . . . . Times Spotted 61 | . 11 13 28 9 Peak Tracking Total 17 | . 3 4 17 6 Tactical Retreats 9 | . . 3 4 2 Traps | -11 -10 -10 -9 -8 ------- Run | Scr Mat Min Mat Mat Traps Triggered . | . . . . . Indirectly . | . . . . . Trap Hack Attempts . | . . . . . Triggered . | . . . . . Disarmed . | . . . . . Reprogrammed . | . . . . . Reused . | . . . . . Traps Extracted . | . . . . . Installed . | . . . . . Triggered . | . . . . . Machines | -11 -10 -10 -9 -8 ---------- Run | Scr Mat Min Mat Mat Machines Disabled . | . . . . . Max in Single Turn . | . . . . . Machines Sabotaged . | . . . . . Garrisons Compromised . | . . . . . Overloaded Fab Kills . | . . . . . Fab Network Shutdowns . | . . . . . Hacking | -11 -10 -10 -9 -8 --------- Run | Scr Mat Min Mat Mat Machines Accessed 10 | . 4 . 4 2 Terminals 9 | . 3 . 4 2 Fabricators . | . . . . . Repair Stations . | . . . . . Recycling Units 1 | . 1 . . . Scanalyzers . | . . . . . Garrison Access . | . . . . . Total Hacks 27 | . 9 . 13 5 Successful 19 | . 6 . 11 2 Failed 8 | . 3 . 2 3 Catastrophic 1 | . . . . 1 Database Lockouts . | . . . . . Manual . | . . . . . Terminals 25 | . 7 . 13 5 Fabricators . | . . . . . Repair Stations . | . . . . . Recycling Units 2 | . 2 . . . Scanalyzers . | . . . . . Garrison Access . | . . . . . Terminal Hacks 19 | . 6 . 11 2 Record 5 | . . . 5 . Robot Analysis 2 | . 1 . 1 . Prototype ID Bank 3 | . 1 . 2 . Emergency Access Points 1 | . . . 1 . Alert Level 2 | . 1 . 1 . Unreport Threat 1 | . 1 . . . Locate Traps 1 | . 1 . . . Dispatch Records 1 | . . . . 1 Recall Investigation 1 | . . . . 1 Zone Layout 2 | . 1 . 1 . Fabricator Hacks . | . . . . . Repair Station Hacks . | . . . . . Recycling Unit Hacks . | . . . . . Scanalyzer . | . . . . . Garrison Access Hacks . | . . . . . Unauthorized Hacks . | . . . . . Terminals . | . . . . . Fabricators . | . . . . . Repair Stations . | . . . . . Recycling Units . | . . . . . Scanalyzers . | . . . . . Garrison Access . | . . . . . Data Cores Recovered . | . . . . . Used . | . . . . . Hacking Detections 7 | . 3 . 2 2 Full Trace Events 3 | . . . 2 1 Feedback Events 1 | . . . 1 . Corruption 1 | . . . 1 . Feedback Blocked . | . . . . . Robot Schematics Acquired . | . . . . . Robots Built . | . . . . . Matter . | . . . . . Time . | . . . . . Total Robot Build Rating . | . . . . . Part Schematics Acquired . | . . . . . Parts Built . | . . . . . Matter . | . . . . . Time . | . . . . . Total Part Build Rating . | . . . . . Parts Repaired . | . . . . . Time . | . . . . . Parts Recycled . | . . . . . Recycled Matter . | . . . . . Retrieved Matter . | . . . . . Retrieved Components . | . . . . . Parts Scanalyzed . | . . . . . Part Schematics Acquired . | . . . . . Parts Damaged . | . . . . . Bothacking | -11 -10 -10 -9 -8 ------------ Run | Scr Mat Min Mat Mat Used RIF Installer . | . . . . . Robots Hacked . | . . . . . Non-combat . | . . . . . Combat . | . . . . . Robot Hacks Applied . | . . . . . Relay Couplers Released . | . . . . . Robots Rewired . | . . . . . Allies Hacked . | . . . . . Hacks Repelled . | . . . . . Allies | -11 -10 -10 -9 -8 -------- Run | Scr Mat Min Mat Mat Total Allies . | . . . . . Largest Group . | . . . . . Highest-Rated Group . | . . . . . Highest-Rated Ally . | . . . . . Total Orders . | . . . . . Ally Attacks . | . . . . . Total Damage . | . . . . . Kills . | . . . . . Allies Corrupted . | . . . . . Allies Melted . | . . . . . Intel | -11 -10 -10 -9 -8 ------- Run | Scr Mat Min Mat Mat Robot Analysis Total 2 | . 1 . 1 . Derelict Logs Recovered 1 | . . 1 . . Drone Launches . | . . . . . Drone Recoveries . | . . . . . Exploration | -11 -10 -10 -9 -8 ------------- Run | Scr Mat Min Mat Mat Turns Passed 1666 | 75 408 370 246 567 Spaces Moved 1452 | 40 339 547 356 170 Core 195 | 1 . . 27 167 Treads 132 | 39 93 . . . Legs 3 | . . . . 3 Wheels . | . . . . . Hover 319 | . 246 73 . . Flight 803 | . . 474 329 . Fastest Speed 31 | 50 56 37 31 50 Average Speed 62 | 157 84 39 40 115 Slowest Speed 300 | 160 160 56 117 300 Overloaded Moves . | . . . . . Propulsion Burnouts . | . . . . . Robots Hopped 21 | . . 14 7 . Cave-ins Triggered . | . . . . . Exploration Rate (%) 36 | 4 44 72 47 13 Regions Visited 4 Branch Regions 1 Pre-discovered Areas . | . . . . . Known Exits Taken . | . . . . . Unknown Exits Taken 4 | 1 1 1 1 . Scrap Searched 1 | . . 1 . . Spaces Dug . | . . . . . Terrain Destroyed 8 | . 8 . . . Melee . | . . . . . Projectile . | . . . . . AOE 8 | . 8 . . . Terrain Rammed . | . . . . . Walls Destroyed . | . . . . . Machines Disabled . | . . . . . Actions | -11 -10 -10 -9 -8 --------- Run | Scr Mat Min Mat Mat Total 2105 | 49 422 668 448 518 Wait 521 | . 33 103 74 311 Move 1408 | 39 338 520 341 170 Hop 19 | . . 12 7 . Pick Up 24 | 4 10 6 3 1 Fast Attach 19 | 6 1 3 5 4 Attach 9 | . . . 2 7 Detach 4 | . . . . 4 Swap 12 | . 8 3 1 . Drop 30 | . 11 9 8 2 Fire 39 | . 21 12 5 1 Melee 11 | . . . . 11 Ram 7 | . . . 2 5 Kick 2 | . . . . 2 Crush . | . . . . . Escape Stasis . | . . . . . Rewire . | . . . . . Trap . | . . . . . Miscellaneous . | . . . . . Route ------- -11/Scrapyard -10/Materials -10/Mines -9/Materials -8/Materials History --------- Turn | Location | Event 19 | -11/Scrapyard | Discovered new exit (range 16) 76 | -11/Scrapyard | Entered Materials 480 | -10/Materials | Discovered new exit (range 8) 484 | -10/Materials | Entered Mines 501 | -10/Mines | Excavation squad dispatched 501 | -10/Mines | A large section of the Mines collapsed 603 | -10/Mines | Build established: Scavenger-Mutant 704 | -10/Mines | A weapon hastily lodged in a ceiling crevice suddenly fell to the ground 708 | -10/Mines | Learned Materials emergency access door positions 751 | -10/Mines | Excavation squad dispatched 756 | -10/Mines | Core integrity fell below 50% 847 | -10/Mines | Discovered new exit (range 15) 854 | -10/Mines | Entered Materials 854 | -9/Materials | Evolved 2 slots: Propulsion x2 1092 | -9/Materials | Discovered new exit (range 17) 1100 | -9/Materials | Entered another Materials area 1100 | -8/Materials | Evolved 2 slots: Power x1, Utility x1 1115 | -8/Materials | Lost 7 parts (4n1u2w) 1375 | -8/Materials | Build established: Mutant 1615 | -8/Materials | Core integrity fell below 50% 1637 | -8/Materials | Lost 4 parts (1p2u1w) 1661 | -8/Materials | Core integrity fell below 20% 1667 | -8/Materials | Destroyed by G-47 Trooper with Particle Gun Last Messages --------------- 01610_ K-01 Serf system corrupted by crushing effect. 01611_ K-01 Serf system terminally corrupted. 01612_ K-01 Serf collects debris. 01614_ Acquired 10 matter. 01623_ Destroyed Imp. Heat Sink. 01623_ G-47 Trooper system corrupted by crushing effect. 01624_ G-47 Trooper system terminally corrupted. 01628_ R-06 Scavenger collects Aluminum Leg. 01630_ G-47 Trooper destroyed. 01631_ R-06 Scavenger collects Particle Gun. 01634_ K-01 Serf collects debris. 01636_ Acquired Aluminum Leg. 01645_ G-47 Trooper suffers critical hit. 01645_ Destroyed Aluminum Leg. 01647_ Plasma Cutter destroyed. 01659_ Great Maul destroyed. 01660_ Slammed into G-47 Trooper. 01661_ Slammed into Y-45 Defender. 01662_ Aluminum Leg destroyed. 01662_ Slammed into Y-45 Defender. Map ----- +----------------------------------------------------+ | ?????????????????????????????????????????????????? | | ?????????????????????????????????????????????????? | | ?????????????????????????????????????????????????? | | ?????????????????????????????????????????????????? | | ?????????????????????????????????????????????????? | | ?????????????????????????????????????????????????? | | ?????????????????????????????????????????????????? | | ?????????????????????????????????????????????????? | | ?????????????????????????????????????????????????? | | ?????????????????????????????????????????????????? | | ?????????????????????????????????????????????????? | | ???????????????? ??????????????????????????????? | | ???????????????? ??????????????????????????????? | | ???????????????# ??????????????????????????????? | | ???????????????+ ??????????????????????????????? | | ???????????????# ??????????????????????????????? | | ???????????????# ??????????????????????????????? | | ???????????????# ??????????????????????????????? | | ???????????????# ??????????????????????????????? | | ???????????????# #?????????????????????????????? | | ???????????????# #?????????????????????????????? | | ???????????????# #?????????????????????????????? | | ???????????????# #????############?????????????? | | ???????????????# #????#% +???????? | | ???????????????# #????#Y##########?????????????? | | ???????????????# #????#@##########?????????????? | | ???????????????# #????#%# #?????????????? | | ???????????????# #????#%# #?????????????? | | ???????????????# ######g# #?????????????? | | ???????????????# Y%# #?????????????? | | ???????????????# g + #?????????????? | | ???????????????# g # #?????????????? | | ???????????????##T#### ## #?????????????? | | ????????????????##???# ## #?????????????? | | ?????????????????????# ## #?????????????? | | ?????????????????????# ###########?????????????? | | ?????????????????????# #???????????????????????? | | ?????????????????????# r#???????????????????????? | | ?????????????????????# #???????????????????????? | | ??????##########?????# #???????????????????????? | | ??????# ! #?????# #???????????????????????? | | ??????# """ ####### #???????????????????????? | | ??????# """"" # !! #???????????????????????? | | ??????# """"" # !! #???????????????????????? | | ??????# """"" + !!! #???????????????????????? | | ??????# """ # #???????????????????????? | | ??????# # #???????????????????????? | | ??????# "T" !# #???????????????????????? | | ??????# """ # #???????????????????????? | | ??????########## #???????????????????????? | +----------------------------------------------------+ Best States ------------- Heat Dissipation 31 Energy Generation 14 Energy Capacity 265 Matter Stores 300 Matter Capacity 300 Sight Range 18 Robot Scan Range 13 Terrain Scan Range 14 Terrain Scan Density 85 ECM Strength 1 Propulsion Shielding 33 Evasion (%) 63 Recoil Reduction 2 Item Schematics ----------------- None Robot Schematics ------------------ None Fabricated ------------ Nothing Alien Tech Used ----------------- None Achievements -------------- None Challenges ------------ None Game ------ Seed HardenedActuatorSteel Manual? 0 Play Time 00:31:51 Cumulative 16.4 hours Start 2021.02.23 @ 13:05:06 End 2021.02.23 @ 13:46:32 Sessions 1 Manual Loads 0 Difficulty Rogue Special Mode None Game No. 32 Rogue 13 Adventurer 15 Explorer 4 Win Type - Total 0 Types 0/0/0/0/0/0/0/0/0 Lore% 23 Gallery% 30 Achievement% 21 Wizard Run 0 Options --------- ASCII 0 Keyboard 0 Movement Numpad Keybinds 0 Fullscreen 2 Font 18/Terminus Map View 76x50 Tactical HUD 1 Map Filters NONE Filters NONE Steam 1 RUN: 49514aeb-667c-45c4-8d77-50600010fa3e